bitfinex-derivatives/quotes_BTCF0:USTF0_20250320
["timestamp","ask_amount","ask_price","bid_price","bid_amount"]
[1742488187827,0.4797133,84127.0,84126.0,0.24]
[1742488188026,0.1189158,84125.0,84124.0,0.1478]
[1742488188626,0.76403421,84127.0,84113.0,4e-05]
[1742488188627,0.1189314,84114.0,84113.0,4e-05]
[1742488188819,0.1189356,84111.0,84110.0,1e-08]
[1742488190023,0.36192001,84114.0,84112.0,0.1189342]
[1742488190227,0.4797314,84114.0,84113.0,0.2838]
[1742488190430,0.3608,84114.0,84113.0,0.6827328]
[1742488190622,0.2832,84124.0,84120.0,0.1189215]
[1742488190828,0.1189208,84122.0,84121.0,0.2822]
[1742488191923,0.1199208,84122.0,84121.0,0.2822]
[1742488192730,0.1199208,84122.0,84121.0,0.4011215]
[1742488192731,0.1199201,84122.0,84121.0,0.4011215]
[1742488192921,0.1209201,84122.0,84121.0,0.4011215]
[1742488193227,0.3608,84127.0,84126.0,0.1189144]
[1742488193425,0.1189051,84133.0,84129.0,0.1189102]
[1742488193726,0.11908711,84130.0,84129.0,0.25]
[1742488193923,0.11908711,84130.0,84129.0,0.2851]
[1742488194232,0.1189272,84117.0,84116.0,0.5295286]
[1742488194414,0.1189272,84117.0,84116.0,0.8195286]
[1742488194921,0.1189272,84117.0,84116.0,0.9657286]
[1742488195331,0.1189272,84117.0,84116.0,0.1462]
[1742488196725,0.1189272,84117.0,84116.0,0.5351286]
[1742488196922,0.36497831,84130.0,84116.0,0.5616]
[1742488197122,0.36497831,84130.0,84124.0,0.0594566]
[1742488197325,0.1189144,84126.0,84125.0,0.1476]
[1742488197730,0.1189257,84118.0,84117.0,0.14756]
[1742488198033,0.4797257,84118.0,84117.0,0.29516]
[1742488198221,0.7625257,84118.0,84117.0,0.29516]
[1742488199027,0.7625257,84118.0,84110.0,1e-08]
[1742488199028,0.1189356,84111.0,84110.0,1e-08]
[1742488199233,0.4797356,84111.0,84110.0,1e-08]
[1742488199423,0.4797356,84111.0,84110.0,0.28000001]
[1742488199732,0.4797356,84111.0,84110.0,1e-08]
[1742488199932,0.4797356,84111.0,84110.0,0.13820001]
[1742488200123,0.4797356,84111.0,84110.0,0.25713711]
[1742488200429,0.4797356,84111.0,84110.0,0.13820001]
[1742488200633,0.4797356,84111.0,84110.0,0.35820001]
[1742488200819,0.4797356,84111.0,84110.0,0.49390001]
[1742488201020,0.6166356,84111.0,84110.0,0.27390001]
[1742488201327,0.7563356,84111.0,84110.0,0.13570001]
[1742488201530,0.7563356,84111.0,84110.0,0.002]
[1742488201834,0.4797356,84111.0,84110.0,0.3809371]
[1742488202126,0.4797356,84111.0,84110.0,0.002]
[1742488202336,0.7563356,84111.0,84110.0,0.002]
[1742488202837,0.0594665,84113.0,84110.0,0.002]
[1742488202838,0.3608,84118.0,84117.0,0.1189272]
[1742488203130,0.4797257,84118.0,84117.0,0.1189272]
[1742488203428,0.4797257,84118.0,84117.0,0.3382626]
[1742488203429,0.1189257,84118.0,84117.0,0.3382626]
[1742488203733,0.1189138,84127.0,84126.0,0.1783681]
[1742488204035,0.17208223,84133.0,84128.0,0.1189116]
[1742488204237,0.4797102,84129.0,84128.0,0.1189116]
[1742488204429,0.118913,84127.0,84126.0,0.0594571]
[1742488204734,0.118913,84127.0,84112.0,0.1189332]
[1742488204735,0.1189356,84113.0,84112.0,0.1189332]
[1742488205036,0.1189356,84111.0,84110.0,0.002]
[1742488205419,0.1189356,84111.0,84110.0,0.1491]
[1742488205823,0.1189356,84111.0,84110.0,0.1471]
[1742488206034,0.1179356,84111.0,84110.0,0.1471]
[1742488206219,0.1189192,84125.0,84124.0,0.0594586]
[1742488206429,0.1189158,84125.0,84124.0,0.24]
[1742488206628,0.11893,84115.0,84114.0,0.2378613]
[1742488206935,0.1783869,84119.0,84118.0,0.0594621]
[1742488207529,0.1783869,84119.0,84118.0,0.1474]
[1742488208226,0.1783869,84119.0,84116.0,4e-05]
[1742488208227,0.1189272,84117.0,84116.0,4e-05]
[1742488208532,0.1189455,84104.0,84103.0,1e-08]
[1742488208841,0.4797455,84104.0,84103.0,1e-08]
[1742488209028,0.78570703,84104.0,84103.0,1e-08]
[1742488209429,1.14650703,84104.0,84103.0,1e-08]
[1742488209629,0.1189569,84096.0,84095.0,0.07405]
[1742488209835,0.4592069,84096.0,84095.0,0.07405]
[1742488210032,0.4572069,84096.0,84095.0,4e-05]
[1742488210225,0.1189597,84094.0,84093.0,0.04756]
[1742488210433,0.1189639,84091.0,84085.0,4e-05]
[1742488210629,0.176,84092.0,84081.0,0.0594889]
[1742488210941,0.0594883,84082.0,84079.0,0.28221636]
[1742488211138,0.1189795,84080.0,84079.0,0.28161636]
[1742488211530,0.2925,84080.0,84079.0,0.40059726]
[1742488212137,0.4114795,84080.0,84079.0,0.28161636]
[1742488212528,0.4114795,84080.0,84078.0,4e-05]
[1742488212529,0.1189809,84079.0,84078.0,4e-05]
[1742488212841,0.2925,84080.0,84078.0,4e-05]
[1742488213035,0.1466,84079.0,84078.0,0.1190223]
[1742488213241,0.17572,84094.0,84085.0,0.1189724]
[1742488213549,0.1189701,84087.0,84085.0,0.1189724]
[1742488213729,0.2017811,84093.0,84084.0,0.1489]
[1742488213934,0.1189809,84079.0,84078.0,0.4121223]
[1742488214130,0.3608,84105.0,84078.0,0.46862]
[1742488214336,0.0594847,84088.0,84078.0,0.92394]
[1742488214538,0.0594785,84096.0,84087.0,0.0594842]
[1742488214738,0.1189668,84089.0,84088.0,0.1489]
[1742488215041,0.1189762,84083.0,84078.0,0.14424]
[1742488215339,0.3608,84086.0,84080.0,0.1376]
[1742488215534,0.1189781,84081.0,84080.0,0.1376]
[1742488215838,0.1189781,84081.0,84080.0,0.2565795]
[1742488216230,0.1189823,84078.0,84077.0,0.00911568]
[1742488216437,0.1189837,84077.0,84074.0,0.4798279]
[1742488216629,0.2629837,84077.0,84076.0,0.09411]
[1742488216940,0.2629837,84077.0,84076.0,0.07411]
[1742488217137,1.85546943,84077.0,84050.0,0.04276042]
[1742488217334,0.1190205,84051.0,84050.0,0.0293723]
[1742488218141,0.0595079,84055.0,84048.0,0.13311775]
[1742488218442,0.05,84048.0,84011.0,0.47683925]
[1742488218647,0.3608,84021.0,84020.0,0.1190645]
[1742488218942,0.3608,84031.0,84020.0,0.299532]
[1742488219138,0.00017853,84029.0,84020.0,0.38677091]
[1742488219443,0.17508,84045.0,84020.0,0.38677091]
[1742488219444,0.3608,84052.0,84028.0,0.3608]
[1742488219646,0.001,84048.0,84047.0,0.1190262]
[1742488219833,0.3608,84070.0,84069.0,0.1189951]
[1742488220029,0.02973,84071.0,84070.0,0.1189936]
[1742488220236,0.00128,84084.0,84070.0,0.26]
[1742488220438,0.1416,84096.0,84088.0,0.1189671]
[1742488220632,0.0594697,84109.0,84082.0,0.17632]
[1742488220633,0.1189736,84085.0,84082.0,0.17632]
[1742488220942,0.1189736,84085.0,84084.0,0.1189738]
[1742488220943,0.00017841,84085.0,84084.0,0.1189738]
[1742488221248,0.00631,84093.0,84092.0,0.1189625]
[1742488221639,0.1189538,84099.0,84092.0,0.3689625]
[1742488221838,0.059473,84104.0,84094.0,0.1189583]
[1742488222039,0.0594715,84106.0,84091.0,0.0594815]
[1742488222244,0.2832,84109.0,84097.0,0.1189543]
[1742488222245,0.143,84109.0,84097.0,0.1189543]
[1742488222443,0.29252727,84129.0,84097.0,0.3608]
[1742488222444,0.00017841,84107.0,84097.0,0.3608]
[1742488222637,0.00017841,84107.0,84106.0,0.1189427]
[1742488222838,0.2832,84128.0,84122.0,0.1189197]
[1742488223045,0.3608,84161.0,84127.0,0.3608]
[1742488223241,0.39392873,84157.0,84156.0,0.118872]
[1742488223438,0.45727815,84180.0,84156.0,0.25]
[1742488223439,0.3608,84178.0,84156.0,0.25]
[1742488223635,0.31050724,84180.0,84160.0,0.14677091]
[1742488223939,0.118872,84156.0,84155.0,0.1385]
[1742488224139,0.1188622,84163.0,84162.0,0.0001783]
[1742488224350,0.1997293,84166.0,84162.0,0.0001783]
[1742488224540,0.1188622,84163.0,84162.0,0.0001783]
[1742488224846,0.1188735,84155.0,84154.0,0.3608]
[1742488225036,0.2942335,84155.0,84154.0,0.3608]
[1742488225236,0.1188848,84147.0,84146.0,4e-05]
[1742488225444,0.2944448,84147.0,84146.0,4e-05]
[1742488225649,0.2944448,84147.0,84119.0,0.1189243]
[1742488225650,0.47916,84147.0,84116.0,0.3608]
[1742488225950,0.0594551,84129.0,84116.0,0.3608]
[1742488226151,0.31574,84128.0,84123.0,0.0001783]
[1742488226338,0.1754,84138.0,84123.0,0.0001783]
[1742488226645,0.1754,84138.0,84125.0,0.1189153]
[1742488226950,0.1189173,84124.0,84123.0,0.0001783]
[1742488227147,0.1189173,84124.0,84123.0,0.257897]
[1742488227449,0.0654552,84129.0,84123.0,0.257897]
[1742488227450,0.006,84129.0,84128.0,0.1189116]
[1742488227643,0.006,84129.0,84128.0,0.3989116]
[1742488227948,0.006,84129.0,84125.0,0.1469]
[1742488228137,0.006,84129.0,84127.0,0.2777]
[1742488228343,0.006,84129.0,84128.0,0.1189116]
[1742488228645,0.1189102,84129.0,84128.0,0.26]
[1742488228951,0.1189102,84129.0,84128.0,0.3966116]
[1742488229444,0.002,84138.0,84128.0,0.3277]
[1742488229645,0.0001783,84140.0,84139.0,0.1188961]
[1742488229843,0.17424,84153.0,84144.0,0.1188884]
[1742488230038,0.3608,84157.0,84150.0,0.1188799]
[1742488230241,0.59292918,84166.0,84154.0,0.3608]
[1742488230448,0.59292918,84166.0,84165.0,0.1188593]
[1742488230449,0.29155788,84166.0,84165.0,0.1188593]
[1742488230647,0.17269998,84166.0,84165.0,0.1188593]
[1742488230851,0.118862,84164.0,84160.0,0.1402]
[1742488231037,0.0594301,84165.0,84164.0,0.1462]
[1742488232044,0.118865,84161.0,84160.0,0.1402]
[1742488232756,0.1198593,84165.0,84164.0,0.1188607]
[1742488233250,0.1188692,84158.0,84157.0,0.0001783]
[1742488233565,0.1188918,84142.0,84141.0,4e-05]
[1742488233854,0.0594418,84148.0,84131.0,0.00891327]
[1742488234044,0.1189032,84134.0,84131.0,0.2994931]
[1742488234350,0.0594382,84153.0,84149.0,0.0594403]
[1742488234551,0.1188801,84151.0,84150.0,0.1188766]
[1742488234853,0.1188801,84151.0,84150.0,0.1385]
[1742488235046,0.4202347,84158.0,84144.0,0.3608]
[1742488235047,0.1188876,84145.0,84144.0,0.3608]
[1742488235248,0.118889,84144.0,84143.0,0.1190687]
[1742488235446,0.118889,84144.0,84143.0,0.4798687]
[1742488235654,0.118889,84144.0,84143.0,0.3609783]
[1742488235852,0.14805091,84180.0,84143.0,0.3609783]
[1742488236054,0.005,84158.0,84157.0,0.4796706]
[1742488236252,0.3608,84176.0,84157.0,0.4796706]
[1742488236253,0.1188583,84167.0,84166.0,0.1188544]
[1742488236458,0.118854,84169.0,84168.0,0.1188519]
[1742488236752,0.178286,84168.0,84167.0,0.1188564]
[1742488236950,0.1188692,84158.0,84157.0,0.3608]
[1742488237257,0.1228692,84158.0,84157.0,0.3608]
[1742488237560,0.004,84158.0,84157.0,0.3488706]
[1742488237751,0.1188692,84158.0,84157.0,0.3488706]
[1742488237947,0.0001783,84166.0,84157.0,0.3773]
[1742488238154,0.1188692,84158.0,84157.0,0.4961695]
[1742488238554,0.1198692,84158.0,84157.0,0.4961695]
[1742488238950,0.1198692,84158.0,84157.0,0.23]
[1742488239147,0.1198692,84158.0,84153.0,4e-05]
[1742488239148,0.1188749,84154.0,84153.0,4e-05]
[1742488239954,0.1949366,84156.0,84149.0,0.0002183]
[1742488239955,0.0594387,84153.0,84149.0,0.0002183]
[1742488240148,0.1188805,84150.0,84149.0,0.0002183]
[1742488240555,0.0594312,84163.0,84149.0,0.0002183]
[1742488240860,0.1208777,84154.0,84153.0,0.118876]
[1742488241063,0.002,84154.0,84153.0,0.118876]
[1742488241270,0.1188805,84150.0,84149.0,0.0002183]
[1742488241747,0.1188805,84150.0,84149.0,0.0001783]
[1742488242257,0.001,84153.0,84152.0,0.1188777]
[1742488242553,0.1188805,84150.0,84149.0,0.0001783]
[1742488242761,0.001,84150.0,84149.0,0.1190602]
[1742488243550,0.1198805,84150.0,84149.0,0.1190602]
[1742488243754,0.1198805,84150.0,84149.0,0.0001783]
[1742488243946,0.0594416,84149.0,84144.0,0.3614]
[1742488244149,0.1189158,84125.0,84124.0,0.3608]
[1742488244348,0.1189201,84122.0,84121.0,0.00906387]
[1742488244761,0.1189201,84122.0,84112.0,4e-05]
[1742488244762,0.1189286,84116.0,84112.0,4e-05]
[1742488244960,0.1189583,84095.0,84094.0,0.4106]
[1742488245265,0.1189583,84095.0,84094.0,0.04]
[1742488245764,0.1189583,84095.0,84057.0,0.3608]
[1742488245765,0.1160078,84060.0,84057.0,0.3608]
[1742488245961,0.1160078,84060.0,84059.0,0.46232243]
[1742488246259,0.1160078,84060.0,84059.0,0.44232243]
[1742488246464,0.1160078,84060.0,84059.0,0.42232243]
[1742488247247,0.1160078,84060.0,84051.0,0.00017841]
[1742488247248,0.1190191,84052.0,84051.0,0.00017841]
[1742488247453,0.1190182,84053.0,84052.0,0.1190163]
[1742488247763,0.1190191,84052.0,84051.0,0.00017841]
[1742488248056,0.1190191,84052.0,84051.0,0.26539891]
[1742488248263,0.1170191,84052.0,84051.0,0.29787841]
[1742488248458,0.1190167,84054.0,84052.0,0.059509]
[1742488248651,0.0595036,84061.0,84054.0,0.0595076]
[1742488248852,0.1190177,84053.0,84052.0,0.008]
[1742488249063,0.0595046,84059.0,84056.0,0.1190106]
[1742488249264,0.119007,84061.0,84058.0,0.059505]
[1742488249452,0.1190078,84060.0,84059.0,0.2848]
[1742488250061,0.1190078,84060.0,84059.0,0.07048371]
[1742488250563,0.4203018,84063.0,84059.0,0.07048371]
[1742488250861,0.11917491,84068.0,84067.0,0.1189979]
[1742488251059,0.00017841,84068.0,84067.0,0.1189979]
[1742488251565,0.13783713,84075.0,84074.0,0.118988]
[1742488251754,0.13783713,84075.0,84074.0,0.388988]
[1742488251955,0.17229641,84082.0,84080.0,0.1189795]
[1742488252163,0.2364857,84087.0,84086.0,0.118971]
[1742488252762,0.2067557,84087.0,84086.0,0.118971]
[1742488253256,0.3257253,84087.0,84086.0,0.547371]
[1742488253453,0.3257253,84087.0,84086.0,0.696271]
[1742488253655,0.3257253,84087.0,84086.0,0.5773]
[1742488254057,0.1189696,84087.0,84086.0,0.2973]
[1742488254259,0.1189696,84087.0,84086.0,0.1489]
[1742488254854,0.1199696,84087.0,84086.0,0.1489]
[1742488255060,0.1199696,84087.0,84081.0,0.4106]
[1742488255061,0.1189767,84082.0,84081.0,0.4106]
[1742488255263,0.1189922,84071.0,84070.0,4e-05]
[1742488255467,0.4797922,84071.0,84070.0,4e-05]
[1742488255766,0.4797922,84071.0,84070.0,0.29134]
[1742488255954,0.3608,84071.0,84070.0,0.4103336]
[1742488256269,0.1189922,84071.0,84070.0,0.4103336]
[1742488256866,0.1189922,84071.0,84070.0,0.29134]
[1742488257165,0.1189922,84071.0,84070.0,0.4103336]
[1742488257562,0.4797868,84075.0,84074.0,0.118988]
[1742488258262,0.0594896,84081.0,84078.0,0.1784724]
[1742488258468,0.4202873,84084.0,84081.0,0.0594884]
[1742488258765,0.1189752,84083.0,84082.0,0.2927]
[1742488258971,0.1389752,84083.0,84082.0,0.1482]
[1742488259156,0.3608,84084.0,84083.0,0.1189752]
[1742488259360,0.1189894,84073.0,84072.0,0.1482]
[1742488259558,0.4797894,84073.0,84072.0,0.1482]
[1742488260164,0.3608,84073.0,84069.0,0.059537]
[1742488260362,0.002,84075.0,84074.0,0.118988]
[1742488260760,0.002,84075.0,84070.0,0.2927]
[1742488260761,0.004,84073.0,84070.0,0.2927]
[1742488261068,0.4797922,84071.0,84070.0,0.1482]
[1742488261364,0.1189936,84070.0,84069.0,4e-05]
[1742488261667,0.1190036,84063.0,84058.0,0.1448]
[1742488262069,0.1190036,84063.0,84058.0,0.14484]
[1742488262459,0.4163036,84063.0,84058.0,0.14484]
[1742488262655,0.5363036,84063.0,84058.0,0.1448]
[1742488262872,0.1190276,84046.0,84045.0,0.0006]
[1742488263071,0.119046,84033.0,84027.0,0.9242466]
[1742488263374,0.1190475,84032.0,84031.0,0.3608]
[1742488263769,0.1190475,84032.0,84031.0,0.4798489]
[1742488264171,0.1190458,84034.0,84021.0,0.3608]
[1742488264172,0.1190616,84022.0,84021.0,0.3608]
[1742488264371,0.1190616,84022.0,84012.0,0.3608]
[1742488264372,0.1190744,84013.0,84012.0,0.3608]
[1742488264873,0.1150772,84011.0,84010.0,4.086e-05]
[1742488265077,0.2794772,84011.0,84010.0,4.086e-05]
[1742488265368,0.1190914,84001.0,83995.0,0.3608]
[1742488265578,0.3037314,84001.0,83995.0,0.3608]
[1742488265763,0.1190985,83996.0,83995.0,0.3608]
[1742488265966,0.2764,84000.0,83981.0,0.13231201]
[1742488266164,0.3608,83985.0,83984.0,0.1191155]
[1742488266664,0.3608,83985.0,83984.0,0.3491155]
[1742488266867,0.3608,83985.0,83984.0,0.1191155]
[1742488267177,0.1519,84003.0,83984.0,0.1191155]
[1742488267178,0.3608,84049.0,83998.0,0.3608]
[1742488267474,0.1519,84058.0,84057.0,0.119012]
[1742488267773,0.16428,84079.0,84057.0,0.6208]
[1742488267960,0.1519,84076.0,84072.0,0.3608]
[1742488268161,0.02973,84087.0,84072.0,0.6108]
[1742488268375,0.1519,84098.0,84085.0,0.3608]
[1742488268559,0.3026,84098.0,84092.0,0.3608]
[1742488268759,0.3026,84098.0,84093.0,0.1509]
[1742488269071,0.2069341,84099.0,84093.0,0.1509]
[1742488269766,0.2069341,84099.0,84095.0,0.1189572]
[1742488270073,0.0001784,84099.0,84096.0,0.2617562]
[1742488270268,0.0001784,84099.0,84096.0,0.1428]
[1742488270672,0.0001784,84099.0,84098.0,0.118954]
[1742488270970,0.0584995,84100.0,84099.0,0.1189526]
[1742488271172,0.04755,84117.0,84116.0,0.1189286]
[1742488271374,0.05712826,84117.0,84116.0,0.4797286]
[1742488271669,0.143,84136.0,84126.0,0.1189138]
[1742488271974,0.06334,84136.0,84128.0,0.1189116]
[1742488272165,0.0635184,84136.0,84128.0,0.3689116]
[1742488272473,0.32317348,84144.0,84128.0,0.3689116]
[1742488272474,0.32317348,84144.0,84143.0,0.1188904]
[1742488272668,0.2953,84164.0,84143.0,1.1356]
[1742488272862,0.3547306,84164.0,84156.0,0.3608]
[1742488273064,0.2953,84164.0,84156.0,0.3608]
[1742488273264,0.2953,84164.0,84144.0,0.1428]
[1742488273265,0.2953,84164.0,84150.0,0.3608]
[1742488273463,0.3608,84153.0,84143.0,0.3608]
[1742488273667,0.44428,84152.0,84149.0,0.00017829]
[1742488273867,0.0594453,84143.0,84135.0,4e-05]
[1742488274067,0.3608,84139.0,84135.0,4e-05]
[1742488274277,0.1189003,84136.0,84135.0,4e-05]
[1742488274471,0.2802,84138.0,84135.0,4e-05]
[1742488274669,0.3608,84139.0,84137.0,0.1188989]
[1742488274861,0.3608,84139.0,84133.0,0.0594517]
[1742488274862,0.0094616,84138.0,84128.0,0.16384]
[1742488275070,0.005,84152.0,84151.0,0.1188791]
[1742488275369,0.3608,84163.0,84158.0,0.1188692]
[1742488275571,0.00017829,84160.0,84158.0,0.1188692]
[1742488275776,0.00017829,84160.0,84158.0,0.3588692]
[1742488275968,0.00017829,84160.0,84158.0,0.1188692]
[1742488276380,0.04752,84169.0,84161.0,0.059432]
[1742488276577,0.139,84177.0,84166.0,0.0594285]
[1742488276780,0.1,84200.0,84183.0,0.1188325]
[1742488276976,0.2772,84188.0,84183.0,0.1188325]
[1742488277279,0.2772,84188.0,84170.0,0.67906302]
[1742488277280,0.3366138,84188.0,84180.0,0.1188379]
[1742488277469,0.2772,84188.0,84170.0,0.3608]
[1742488277671,0.0594141,84187.0,84176.0,0.11902128]
[1742488277972,0.1188394,84180.0,84176.0,0.00017818]
[1742488278173,0.1188424,84177.0,84176.0,0.00017818]
[1742488278767,0.15,84177.0,84145.0,0.3608]
[1742488278967,0.25883722,84155.0,84145.0,0.3394437]
[1742488279169,0.1188947,84140.0,84139.0,4e-05]
[1742488279475,0.6500947,84140.0,84139.0,4e-05]
[1742488279680,0.1189272,84117.0,84116.0,0.3608]
[1742488280179,0.1189342,84112.0,84111.0,0.4185356]
[1742488280383,0.3608,84117.0,84115.0,0.1189286]
[1742488280585,0.1189229,84121.0,84120.0,0.1189198]
[1742488280875,0.3608,84121.0,84111.0,0.2070675]
[1742488281179,0.1189342,84112.0,84111.0,0.2070675]
[1742488281381,0.1189342,84112.0,84108.0,0.15217829]
[1742488281382,0.1189356,84111.0,84108.0,0.00017829]
[1742488281684,0.1189583,84095.0,84072.0,0.01270151]
[1742488281875,0.1189738,84084.0,84082.0,0.1189753]
[1742488282068,0.1189738,84084.0,84081.0,0.152]
[1742488282269,0.4797738,84084.0,84081.0,0.152]
[1742488282469,0.4797738,84084.0,84082.0,0.1377]
[1742488282470,0.1179752,84083.0,84082.0,0.1377]
[1742488282677,0.1189767,84082.0,84069.0,0.1190341]
[1742488282872,0.25883722,84080.0,84079.0,0.1189809]
[1742488283065,0.00017839,84091.0,84083.0,0.0594871]
[1742488283066,0.3608,84086.0,84083.0,0.0594871]
[1742488283276,0.1189724,84085.0,84084.0,0.2829]
[1742488283469,0.1189724,84085.0,84084.0,0.4018724]
[1742488283675,0.00017839,84091.0,84088.0,0.0594835]
[1742488283873,0.00017839,84091.0,84090.0,0.1189653]
[1742488284080,0.00017839,84091.0,84090.0,0.4018653]
[1742488284277,0.61963722,84110.0,84109.0,0.1189385]
[1742488284278,0.00168,84110.0,84109.0,0.1189385]
[1742488284469,0.3608,84116.0,84114.0,0.11893]
[1742488284673,0.479729,84116.0,84115.0,0.25663]
[1742488285082,0.3608,84116.0,84105.0,0.3608]
[1742488285286,0.1189356,84113.0,84112.0,0.1189304]
[1742488285970,0.4797291,84116.0,84115.0,0.11893]
[1742488286379,0.3608,84116.0,84115.0,0.11893]
[1742488286883,0.00017839,84119.0,84115.0,0.11893]
[1742488286884,0.00017839,84119.0,84118.0,0.1189257]
[1742488287077,0.4202514,84135.0,84118.0,0.1189257]
[1742488287078,0.1189078,84131.0,84130.0,0.1189088]
[1742488287278,0.4202511,84135.0,84132.0,0.1189039]
[1742488287475,0.3608,84135.0,84134.0,0.1189031]
[1742488287684,0.3608,84135.0,84134.0,0.3589031]
[1742488288082,0.1188904,84143.0,84142.0,0.0594454]
[1742488288277,0.178347,84140.0,84139.0,0.0594478]
[1742488288477,0.178347,84140.0,84139.0,0.3499478]
[1742488288790,0.05962369,84143.0,84142.0,0.1188918]
[1742488288984,0.00906023,84167.0,84142.0,0.1188918]
[1742488288985,0.3608,84163.0,84151.0,0.1188759]
[1742488289280,0.1188932,84141.0,84140.0,0.5276]
[1742488289586,0.1188961,84139.0,84138.0,0.0594479]
[1742488289977,0.1188931,84142.0,84141.0,0.1188932]
[1742488290277,0.00017829,84147.0,84146.0,0.1188862]
[1742488290580,0.11906309,84147.0,84146.0,0.1188862]
[1742488291689,0.1188862,84146.0,84145.0,0.141]
[1742488291887,0.1189074,84131.0,84121.0,0.0594605]
[1742488292089,0.1189074,84131.0,84124.0,0.1189165]
[1742488292391,0.1189074,84131.0,84127.0,0.1189125]
[1742488292689,0.1188909,84144.0,84130.0,0.36097829]
[1742488292895,0.3608,84154.0,84146.0,0.1188862]
[1742488293080,0.0594368,84155.0,84146.0,0.1188862]
[1742488293283,0.1188862,84146.0,84145.0,0.4167862]
[1742488293485,0.0594382,84153.0,84146.0,0.1188862]
[1742488293784,0.3608,84155.0,84146.0,0.5210862]
[1742488293994,0.0594391,84152.0,84146.0,0.6667862]
[1742488294292,0.1188769,84153.0,84146.0,0.6667862]
[1742488294585,0.52608,84164.0,84163.0,0.1188622]
[1742488294586,0.4796607,84164.0,84163.0,0.1188622]
[1742488294789,0.118872,84156.0,84155.0,0.2838703]
[1742488294979,0.118872,84156.0,84155.0,0.2377425]
[1742488295177,0.0594327,84161.0,84160.0,0.1188664]
[1742488295376,0.3608,84172.0,84171.0,0.1188509]
[1742488295580,0.4796494,84172.0,84171.0,0.2580509]
[1742488295895,0.00017829,84180.0,84179.0,0.1188396]
[1742488297578,0.3608,84193.0,84192.0,0.1188212]
[1742488297893,0.1,84200.0,84196.0,0.0594076]
[1742488298083,0.2188129,84200.0,84199.0,0.1188113]
[1742488298293,0.1,84200.0,84199.0,0.1188113]
[1742488298485,0.1,84200.0,84199.0,0.4088113]
[1742488299087,0.01173,84210.0,84209.0,0.1187972]
[1742488299285,0.10277439,84215.0,84214.0,0.1187902]
[1742488299487,0.10277439,84215.0,84214.0,0.3587902]
[1742488300090,0.22156319,84215.0,84214.0,0.1187902]
[1742488300490,0.10277439,84215.0,84214.0,0.3887902]
[1742488300695,0.118786,84221.0,84220.0,0.0593897]
[1742488301489,0.1781866,84215.0,84214.0,0.1187899]
[1742488301991,0.064395,84215.0,84214.0,0.1187899]
[1742488302293,0.005,84215.0,84214.0,0.1187899]
[1742488302490,0.005,84215.0,84214.0,0.3587899]
[1742488302880,0.005,84215.0,84214.0,0.7295899]
[1742488303082,0.005,84221.0,84220.0,0.1187817]
[1742488303591,0.1187778,84223.0,84222.0,0.1187789]
[1742488303799,0.1187803,84221.0,84220.0,0.0593902]
[1742488304499,0.1237803,84221.0,84220.0,0.0593902]
[1742488304996,0.1187817,84220.0,84219.0,0.1188225]
[1742488305294,0.1187817,84220.0,84219.0,4e-05]
[1742488305483,0.4189817,84220.0,84219.0,4e-05]
[1742488305688,0.1187888,84216.0,84215.0,0.1187878]
[1742488306298,0.1187888,84215.0,84214.0,0.4795902]
[1742488306498,0.4132888,84215.0,84214.0,0.4795902]
[1742488307397,0.1412608,84215.0,84214.0,0.1187902]
[1742488307596,0.0593924,84218.0,84214.0,0.1187902]
[1742488307597,0.0593924,84218.0,84217.0,0.1187859]
[1742488308096,0.1187859,84217.0,84216.0,0.1484]
[1742488308292,0.005,84220.0,84216.0,0.1484]
[1742488308491,0.1187739,84226.0,84219.0,0.3608]
[1742488308701,0.1781619,84227.0,84226.0,0.1187722]
[1742488308895,0.3608,84240.0,84219.0,0.3608]
[1742488309099,0.1187549,84240.0,84239.0,0.1187549]
[1742488309289,0.3608,84241.0,84228.0,0.0593849]
[1742488309482,0.1187689,84230.0,84229.0,0.1539]
[1742488309695,0.1187658,84232.0,84229.0,0.1539]
[1742488309899,0.1187658,84232.0,84231.0,0.1187637]
[1742488310095,0.3608,84241.0,84229.0,0.2726667]
[1742488310096,0.0593789,84237.0,84229.0,0.1187684]
[1742488310289,0.059383,84232.0,84229.0,0.0593838]
[1742488310495,0.1187662,84232.0,84231.0,0.1187647]
[1742488311193,0.1187662,84232.0,84228.0,0.14504]
[1742488311194,0.118769,84229.0,84228.0,0.1198104]
[1742488311400,0.0593831,84231.0,84230.0,0.1187676]
[1742488311699,0.1187667,84231.0,84230.0,0.2375304]
[1742488311900,0.1456,84233.0,84232.0,0.1187648]
[1742488312101,0.0593661,84256.0,84247.0,0.1187412]
[1742488312102,0.1187445,84248.0,84247.0,0.1187412]
[1742488312290,0.1187445,84248.0,84232.0,0.6408]
[1742488312291,0.118749,84244.0,84243.0,0.1187489]
[1742488312601,0.118749,84244.0,84239.0,0.2192573]
[1742488312602,0.1187535,84240.0,84239.0,0.00017806]
[1742488314395,0.1187535,84240.0,84239.0,0.11893296]
[1742488314605,0.1437535,84240.0,84239.0,0.00017806]
[1742488314806,0.1237535,84240.0,84239.0,0.00017806]
[1742488315099,0.009,84240.0,84239.0,0.11893296]
[1742488315502,0.1277535,84240.0,84239.0,0.11893296]
[1742488315704,0.009,84240.0,84239.0,0.42033296]
[1742488315900,0.1277535,84240.0,84239.0,0.42033296]
[1742488316105,0.009,84240.0,84239.0,0.42033296]
[1742488316602,0.1277535,84240.0,84239.0,0.42033296]
[1742488316906,0.1277535,84240.0,84239.0,0.00017806]
[1742488317090,0.1477535,84240.0,84239.0,0.00017806]
[1742488317294,0.3063535,84240.0,84239.0,0.00017806]
[1742488317499,0.6126535,84240.0,84239.0,0.00017806]
[1742488319109,0.1187747,84225.0,84224.0,0.5293761]
[1742488319404,0.1187747,84225.0,84224.0,0.5632]
[1742488319595,0.1187747,84225.0,84215.0,0.3608]
[1742488319596,0.1187845,84218.0,84217.0,4e-05]
[1742488319905,0.1187845,84218.0,84217.0,0.1188259]
[1742488320203,0.0593857,84228.0,84220.0,0.0593906]
[1742488320398,0.1578,84227.0,84218.0,0.1526]
[1742488320605,0.1187792,84224.0,84223.0,0.1781608]
[1742488320795,0.1187792,84224.0,84223.0,0.0593875]
[1742488320996,0.1187789,84222.0,84221.0,0.05939]
[1742488321204,0.1187789,84222.0,84221.0,0.21199]
[1742488321404,0.1187845,84218.0,84217.0,4e-05]
[1742488321591,0.4995845,84218.0,84217.0,4e-05]
[1742488321910,0.4995845,84218.0,84197.0,0.21039888]
[1742488321911,0.1188015,84206.0,84197.0,0.21039888]